bitfinex-derivatives/quotes_SOLF0:USTF0_20250113
["timestamp","ask_amount","ask_price","bid_price","bid_amount"]
[1736762990421,2.7798,179.99,179.94,2.7805]
[1736762990728,6.06,180.01,179.89,21.35371621]
[1736762991225,6.06,180.01,179.96,2.7801]
[1736762991425,6.06,180.03,179.92,21.35371621]
[1736762991822,2.7794,180.02,179.96,2.7801]
[1736762992218,6.06,180.03,179.92,21.35371621]
[1736762992422,2.7799,179.99,179.93,2.7806]
[1736762992627,6.06,180.03,179.89,21.35371621]
[1736762992931,2.7796,180.01,179.95,2.7803]
[1736762994127,2.7796,180.0,179.95,2.7803]
[1736762994827,2.7794,180.01,179.96,2.7801]
[1736762995823,6.06,180.03,179.94,30.36178905]
[1736762996023,27.41371621,180.03,179.94,30.36178905]
[1736762996729,27.41371621,180.03,179.92,30.36178905]
[1736762997126,2.7798,179.99,179.93,2.7805]
[1736762997430,194.0,180.1,179.93,149.01318185]
[1736762997431,6.06,180.01,179.93,149.01318185]
[1736762997629,2.7796,180.0,179.95,2.7803]
[1736762997926,21.35371621,180.09,179.93,149.01318185]
[1736762998131,2.7791,180.04,179.98,2.7797]
[1736762998329,6.06,180.08,179.98,2.7797]
[1736762999130,2.7791,180.03,179.98,185.87071992]
[1736762999629,6.06,180.06,179.98,183.09101992]
[1736762999831,8.8387,180.06,179.98,183.09101992]
[1736763000134,8.8387,180.06,180.01,2.7794]
[1736763000332,6.06,180.06,179.98,183.09101992]
[1736763001030,77.87491905,180.11,180.01,183.09101992]
[1736763001230,6.06,180.09,180.02,2.7792]
[1736763001432,6.06,180.1,180.01,183.09101992]
[1736763001633,2.7783,180.09,180.01,183.09101992]
[1736763001830,6.06,180.1,180.01,183.09101992]
[1736763002233,6.06,180.1,180.03,336.43377452]
[1736763002832,2.7791,180.05,180.03,336.43377452]
[1736763003035,2.7791,180.05,180.01,336.43377452]
[1736763004036,2.7791,180.05,180.0,336.43377452]
[1736763004236,21.35371621,180.09,180.0,336.43377452]
[1736763004935,21.35371621,180.09,179.98,191.67844325]
[1736763004936,2.7794,180.03,179.98,336.43377452]
[1736763005735,2.7794,180.03,179.99,5.17156189]
[1736763006133,21.35371621,180.12,179.99,5.17156189]
[1736763006442,15.50771038,180.93,180.07,21.35371621]
[1736763006443,21.35371621,180.21,180.07,21.35371621]
[1736763006635,194.0,180.29,180.08,3.2725]
[1736763006636,2.7772,180.18,180.08,3.2725]
[1736763006936,13.98853156,180.2,180.1,21.35371621]
[1736763007136,7.92853156,180.2,180.15,2.7775]
[1736763007338,7.92853156,180.2,180.1,21.35371621]
[1736763007541,13.98853156,180.21,180.1,21.35371621]
[1736763007832,6.06,180.21,180.1,28.94416347]
[1736763008139,7.59451766,180.26,180.13,21.35371621]
[1736763008334,14.01892332,180.26,180.16,21.35371621]
[1736763008533,14.01892332,180.26,180.2,2.7767]
[1736763008734,14.01892332,180.26,180.17,1.6908]
[1736763008940,6.08,180.26,180.17,1.6908]
[1736763009131,8.856,180.26,180.19,2.7769]
[1736763009733,2.776,180.25,180.19,2.7769]
[1736763010137,6.08,180.27,180.18,3.2888]
[1736763010442,21.35371621,180.24,180.13,7.59044726]
[1736763010937,21.35371621,180.24,180.11,33.76218905]
[1736763011138,21.35371621,180.24,180.11,36.54028905]
[1736763011845,2.7769,180.19,180.12,2.778]
[1736763012039,7.91779273,180.23,180.11,3.4004]
[1736763012343,2.777,180.19,180.13,2.7778]
[1736763012537,2.777,180.19,180.11,3.4004]
[1736763012750,6.08,180.18,180.11,3.4004]
[1736763013042,6.08,180.18,180.06,21.35371621]
[1736763013344,2.7777,180.14,180.07,5.9171]
[1736763013842,2.7777,180.14,180.07,3.1384]
[1736763014045,2.7774,180.16,180.09,2.7784]
[1736763014238,6.08,180.18,180.09,2.7784]
[1736763014437,6.08,180.18,180.07,3.1384]
[1736763014642,6.08,180.18,180.12,2.778]
[1736763014839,6.08,180.18,180.09,21.35371621]
[1736763015044,6.08,180.21,180.09,21.35371621]
[1736763015249,2.7769,180.19,180.12,2.7778]
[1736763015744,8.8567,180.21,180.14,2.7776]
[1736763015948,2.7767,180.21,180.12,21.35371621]
[1736763016148,99.1605829,180.27,180.12,21.35371621]
[1736763016347,6.06,180.26,180.15,21.35371621]
[1736763016645,77.80686669,180.27,180.16,1.6275]
[1736763016646,83.86686669,180.27,180.16,1.6275]
[1736763016944,83.86686669,180.27,180.18,21.35371621]
[1736763017247,83.86686669,180.27,180.19,1.6922]
[1736763017447,77.80686669,180.27,180.19,1.6922]
[1736763017645,6.06,180.3,180.19,1.6922]
[1736763018043,21.35371621,180.36,180.21,21.35371621]
[1736763018246,6.06,180.35,180.21,21.35371621]
[1736763018848,21.35371621,180.36,180.21,21.35371621]
[1736763019153,2.7751,180.31,180.24,2.776]
[1736763019549,6.06,180.33,180.24,2.776]
[1736763020146,2.7754,180.29,180.21,21.35371621]
[1736763020451,6.06,180.33,180.24,21.35371621]
[1736763021148,6.06,180.33,180.21,21.35371621]
[1736763021652,2.7752,180.31,180.21,21.35371621]
[1736763021851,6.06,180.33,180.21,21.35371621]
[1736763022254,2.7751,180.31,180.25,2.7759]
[1736763022546,6.06,180.35,180.24,21.35371621]
[1736763022850,6.06,180.35,180.25,1.6238]
[1736763024251,0.84670098,180.34,180.25,1.6238]
[1736763024550,2.775,180.32,180.26,2.7758]
[1736763025449,2.7748,180.33,180.27,2.7756]
[1736763025750,6.06,180.35,180.25,1.6238]
[1736763025951,2.7752,180.31,180.25,1.6238]
[1736763026346,6.06,180.35,180.25,1.6238]
[1736763026552,2.7749,180.33,180.25,1.6238]
[1736763026951,21.35371621,180.39,180.25,1.6238]
[1736763027152,2.7745,180.35,180.28,2.7755]
[1736763027448,116.71371621,180.42,180.27,21.35371621]
[1736763027649,2.7744,180.36,180.3,2.7752]
[1736763028640,2.7749,180.33,180.29,1.6603]
[1736763030050,21.35371621,180.39,180.28,1.65]
[1736763030249,0.84666089,180.38,180.28,1.65]
[1736763030653,2.775,180.32,180.28,1.65]
[1736763031255,2.7748,180.33,180.28,1.65]
[1736763031455,21.35371621,180.39,180.28,1.65]
[1736763031757,6.86664021,180.38,180.28,1.65]
[1736763031958,6.02,180.38,180.28,1.65]
[1736763032453,2.7743,180.36,180.28,1.65]
[1736763034256,6.02,180.38,180.28,1.65]
[1736763035459,2.7746,180.35,180.28,1.65]
[1736763035658,6.02,180.38,180.28,1.65]
[1736763036263,2.7743,180.36,180.31,2.7751]
[1736763036464,6.02,180.38,180.28,1.65]
[1736763037455,2.7742,180.37,180.28,1.65]
[1736763037768,2.7742,180.37,180.31,2.7749]
[1736763037969,27.37371621,180.39,180.28,1.65]
[1736763038266,0.84656812,180.38,180.28,1.65]
[1736763038465,2.7748,180.33,180.28,1.65]
[1736763038862,27.37371621,180.39,180.3,2.7752]
[1736763039064,2.7744,180.36,180.3,2.7752]
[1736763039464,6.02,180.37,180.3,2.7752]
[1736763040367,2.7745,180.35,180.3,2.7752]
[1736763040866,6.02,180.37,180.28,1.65]
[1736763041265,2.7746,180.34,180.29,2.7753]
[1736763041459,6.02,180.37,180.28,1.65]
[1736763041864,8.7942,180.37,180.28,1.65]
[1736763042261,7.90721491,180.41,180.28,1.65]
[1736763042461,2.7737,180.4,180.35,2.7744]
[1736763043373,2.774,180.39,180.33,2.7746]
[1736763043564,6.02,180.41,180.33,2.7746]
[1736763043764,7.90735922,180.42,180.33,2.7746]
[1736763043964,2.7739,180.39,180.34,2.7745]
[1736763044364,6.02,180.41,180.3,21.35371621]
[1736763044561,6.02,180.41,180.28,1.65]
[1736763044969,13.92735922,180.41,180.28,1.65]
[1736763045469,13.92735922,180.41,180.31,2.7749]
[1736763046569,2.7742,180.37,180.32,2.7749]
[1736763048668,6.02,180.41,180.28,1.65]
[1736763048870,21.35371621,180.39,180.28,1.65]
[1736763049066,21.35371621,180.39,180.25,3.1802]
[1736763049273,21.35371621,180.36,180.25,5.9561]
[1736763049471,21.35371621,180.36,180.25,3.1802]
[1736763049771,21.35371621,180.39,180.25,3.1802]
[1736763050271,6.02,180.41,180.27,21.35371621]
[1736763050670,2.7744,180.36,180.31,2.7751]
[1736763051265,2.7747,180.34,180.29,2.7753]
[1736763051865,2.7748,180.33,180.29,2.7753]
[1736763052066,21.35371621,180.4,180.27,2.7756]
[1736763052275,21.35371621,180.37,180.27,2.7756]
[1736763053266,2.7748,180.33,180.28,2.7755]
[1736763053471,8.7948,180.33,180.28,2.7755]
[1736763054070,2.775,180.32,180.27,2.7756]
[1736763054274,6.02,180.33,180.25,3.1802]
[1736763054872,2.7751,180.31,180.26,2.7758]
[1736763055267,6.02,180.33,180.25,3.1802]
[1736763056066,8.7948,180.33,180.25,3.1802]
[1736763056774,6.02,180.33,180.25,3.1802]
[1736763057470,2.7752,180.31,180.25,3.1802]
[1736763059269,6.02,180.33,180.23,1.6403]
[1736763059270,13.30977644,180.32,180.23,1.6403]
[1736763059472,13.30977644,180.29,180.17,3.2209]
[1736763059666,13.30977644,180.29,180.19,2.7769]
[1736763059867,13.30977644,180.29,180.17,3.2209]
[1736763060276,2.7763,180.24,180.19,2.7769]
[1736763060580,6.02,180.25,180.17,3.2209]
[1736763060775,6.02,180.25,180.19,13.30977644]
[1736763061576,6.02,180.25,180.22,2.7763]
[1736763061969,6.02,180.25,180.17,3.2209]
[1736763062275,6.02,180.25,180.18,13.30977644]
[1736763062480,6.02,180.25,180.21,2.7766]
[1736763063277,6.02,180.25,180.22,2.7764]
[1736763063874,6.02,180.25,180.21,2.7766]
[1736763064080,6.02,180.25,180.18,13.30977644]
[1736763064478,6.02,180.25,180.21,2.7765]
[1736763065679,6.02,180.25,180.17,1.5676]
[1736763065884,19.32977644,180.25,180.14,1.5628]
[1736763066179,19.32977644,180.25,180.11,1.5923]
[1736763066180,13.30977644,180.22,180.11,3.1966]
[1736763066384,13.30977644,180.22,180.11,1.6043]
[1736763066680,2.7774,180.16,180.08,33.7070277]
[1736763066871,6.0,180.15,180.08,33.7070277]
[1736763067076,6.0,180.15,180.07,1.7047]
[1736763067276,8.7777,180.15,180.09,2.7784]
[1736763067477,6.0,180.15,180.07,1.7047]
[1736763068181,6.0,180.15,180.07,23.04186373]
[1736763069377,6.0,180.15,180.07,1.7047]
[1736763069884,2.7779,180.13,180.08,2.7786]
[1736763070079,6.0,180.15,180.07,1.7047]
[1736763070979,8.7776,180.15,180.1,2.7782]
[1736763071184,8.7776,180.15,180.07,1.7047]
[1736763071884,2.7779,180.13,180.08,2.7786]
[1736763072386,2.7779,180.13,180.07,4.4833]
[1736763072685,2.7779,180.13,180.07,1.7047]
[1736763072984,6.0,180.15,180.07,1.7047]
[1736763073185,2.7777,180.14,180.09,2.7784]
[1736763073481,6.0,180.15,180.07,1.7047]
[1736763075488,6.0,180.15,180.1,2.7782]
[1736763075891,21.33716373,180.22,180.07,1.7047]
[1736763076089,6.0,180.21,180.15,2.7775]
[1736763076283,6.0,180.2,180.15,2.7775]
[1736763076488,2.777,180.19,180.09,21.33716373]
[1736763076690,6.0,180.2,180.09,2.7784]
[1736763076893,6.0,180.2,180.08,1.5528]
[1736763077089,6.0,180.2,180.09,21.33716373]
[1736763077388,6.0,180.2,180.13,2.7777]
[1736763077783,2.777,180.19,180.13,2.7777]
[1736763078189,6.0,180.2,180.12,2.778]
[1736763078684,2.7773,180.17,180.11,2.7781]
[1736763079193,6.0,180.2,180.08,1.5528]
[1736763079389,22.18150044,180.19,180.07,1.7047]
[1736763079691,22.18150044,180.19,180.0,95.26]
[1736763079692,21.33716373,180.13,180.01,1.712]
[1736763079992,6.0,180.12,179.97,21.33716373]
[1736763080287,6.0,180.12,180.0,2.7797]
[1736763080487,21.33716373,180.1,179.97,21.33716373]
[1736763080691,6.0,180.12,179.97,21.33716373]
[1736763081585,6.0,180.12,180.02,2.7795]
[1736763081788,6.0,180.12,180.0,21.33716373]
[1736763081991,2.7785,180.09,180.03,2.7794]
[1736763082191,6.0,180.12,180.0,21.33716373]
[1736763082593,2.7783,180.1,180.04,2.7791]
[1736763083685,6.0,180.12,180.0,21.33716373]
[1736763083887,6.0,180.19,180.06,21.33716373]
[1736763084090,6.0,180.19,180.07,3.3421]
[1736763084290,2.7769,180.2,180.09,21.33716373]
[1736763084895,6.0,180.21,180.12,21.33716373]
[1736763085292,6.0,180.21,180.09,21.33716373]
[1736763085488,6.0,180.21,180.07,4.9093]
[1736763085995,2.778,180.13,180.07,7.6881]
[1736763086198,21.33716373,180.2,180.07,4.9093]
[1736763086994,6.0,180.21,180.07,4.9093]
[1736763087292,6.0,180.21,180.09,21.33716373]
[1736763087492,2.7768,180.2,180.14,2.7776]
[1736763087689,6.0,180.2,180.09,21.33716373]
[1736763087996,6.0,180.2,180.12,2.7779]
[1736763088195,6.0,180.2,180.07,4.9093]
[1736763088397,27.33716373,180.2,180.07,4.9093]
[1736763089103,2.7774,180.17,180.12,2.778]
[1736763089692,2.7774,180.16,180.07,4.9093]
[1736763090100,2.7772,180.17,180.1,2.7782]
[1736763090300,2.7772,180.17,180.07,4.9093]
[1736763090602,6.0,180.2,180.12,21.33716373]
[1736763090793,2.7766,180.21,180.16,2.7772]
[1736763091401,6.02,180.23,180.18,2.7769]
[1736763091598,6.02,180.24,180.12,21.33716373]
[1736763092299,27.35716373,180.24,180.09,21.33716373]
[1736763093399,2.777,180.19,180.09,21.33716373]
[1736763093598,27.35716373,180.24,180.09,21.33716373]
[1736763093799,0.84357559,180.23,180.09,21.33716373]
[1736763094201,27.35716373,180.24,180.09,21.33716373]
[1736763094404,2.777,180.19,180.13,2.7778]
[1736763094903,2.777,180.19,180.14,2.7776]
[1736763095104,2.7768,180.2,180.14,2.7776]
[1736763095303,21.33716373,180.27,180.09,21.33716373]
[1736763095501,6.86382643,180.26,180.17,2.7772]
[1736763095700,2.7764,180.23,180.17,2.7772]
[1736763096101,2.7761,180.25,180.14,21.33716373]
[1736763096303,6.02,180.27,180.17,21.33716373]
[1736763096702,8.7957,180.27,180.21,2.7765]
[1736763096901,2.7757,180.27,180.21,2.7765]
[1736763097102,8.7957,180.27,180.21,2.7765]
[1736763097303,2.7763,180.24,180.17,2.7771]
[1736763097505,27.35716373,180.27,180.15,3.187]
[1736763097705,0.84386759,180.26,180.15,3.187]
[1736763097907,21.33716373,180.24,180.15,3.187]
[1736763098302,2.777,180.19,180.15,3.187]
[1736763098504,2.777,180.19,180.13,2.7778]
[1736763098807,2.7771,180.18,180.11,2.778]
[1736763099203,6.02,180.19,180.03,52.01557195]
[1736763099406,21.33716373,180.18,180.04,4.9218]
[1736763101114,6.02,180.19,180.06,21.33716373]
[1736763101609,6.02,180.19,180.09,21.33716373]
[1736763102505,6.02,180.19,180.12,21.33716373]
[1736763102702,6.02,180.25,180.13,4.8275]
[1736763103108,2.7765,180.22,180.17,2.7772]
[1736763104117,27.35716373,180.25,180.13,4.8275]
[1736763104513,21.33716373,180.28,180.13,4.8275]
[1736763104714,6.04,180.27,180.19,2.7768]
[1736763105213,2.7763,180.24,180.14,21.33716373]
[1736763105423,6.04,180.27,180.17,21.33716373]
[1736763106225,2.7759,180.26,180.2,2.7766]
[1736763106425,2.7759,180.26,180.17,21.33716373]
[1736763108427,2.7759,180.26,180.21,2.7766]
[1736763109126,6.02,180.28,180.17,21.33716373]
[1736763109326,2.7763,180.23,180.19,2.7769]
[1736763109724,2.7766,180.21,180.16,2.7773]
[1736763110328,2.7766,180.21,180.16,2.7774]
[1736763111531,2.7763,180.23,180.18,2.777]
[1736763111730,7.9337373,180.27,180.14,21.33716373]
[1736763112028,7.9337373,180.27,180.17,21.33716373]
[1736763112221,21.33716373,180.31,180.17,21.33716373]
[1736763112222,6.02,180.29,180.21,2.7765]
[1736763112930,2.7757,180.27,180.22,2.7764]
[1736763114528,2.7756,180.28,180.23,2.7763]
[1736763114832,8.7956,180.28,180.23,2.7763]
[1736763115832,22.1808913,180.27,180.13,4.8275]
[1736763116027,0.84372757,180.26,180.13,4.8275]
[1736763116431,8.7726317,180.26,180.13,4.8275]
[1736763116628,2.7763,180.23,180.13,4.8275]
[1736763117030,21.33716373,180.27,180.13,4.8275]
[1736763117330,0.8440333,180.26,180.13,4.8275]
[1736763117527,8.77518609,180.26,180.13,4.8275]
[1736763117728,2.7766,180.21,180.16,2.7773]
[1736763118028,7.93115279,180.26,180.16,2.7773]
[1736763118330,21.33716373,180.21,180.13,3.2327]
[1736763118537,6.0,180.2,180.13,3.2327]
[1736763118735,2.7774,180.17,180.13,3.2327]
[1736763118931,6.0,180.2,180.13,3.2327]
[1736763119136,6.0,180.2,180.07,1.6684]
[1736763119336,2.7775,180.16,180.08,3.3542]
[1736763120235,2.7775,180.16,180.11,2.7781]
[1736763120633,2.7772,180.18,180.12,2.778]
[1736763120830,6.0,180.2,180.08,3.3542]
[1736763121038,6.0,180.2,180.08,24.69136373]
[1736763121236,2.7771,180.18,180.11,2.7781]
[1736763121437,6.0,180.2,180.08,24.69136373]
[1736763122038,2.777,180.19,180.13,2.7778]
[1736763123130,6.0,180.2,180.11,2.7781]
[1736763123131,2.7774,180.16,180.11,2.7781]
[1736763123432,21.33716373,180.18,180.08,1.6652]
[1736763123632,2.7783,180.11,180.05,2.7789]
[1736763123838,6.0,180.12,180.05,2.7789]
[1736763124436,6.0,180.12,180.04,2.7792]
[1736763124845,2.7785,180.09,180.03,4.9878]
[1736763125040,27.33716373,180.12,180.03,3.2869]
[1736763125242,27.33716373,180.12,179.96,1.7009]
[1736763125243,21.33716373,180.09,179.96,1.7009]
[1736763125432,21.33716373,180.06,179.96,3.381]
[1736763127434,2.7795,180.03,179.96,6.1614]
[1736763127635,6.0,180.02,179.96,6.1614]
[1736763127938,6.0,180.06,180.01,2.7797]
[1736763128141,6.0,180.06,179.96,24.71816373]
[1736763128441,6.0,180.06,179.96,3.381]
[1736763128635,27.33716373,180.06,179.96,3.381]
[1736763129137,2.7792,180.04,179.97,2.7803]
[1736763129339,27.33716373,180.06,179.97,2.7803]
[1736763130531,2.7792,180.04,179.97,2.7803]
[1736763131637,6.0,180.06,179.96,3.381]
[1736763131838,2.7791,180.05,179.99,2.78]
[1736763132431,8.7789,180.06,179.99,2.78]
[1736763132831,8.7789,180.06,179.96,3.381]
[1736763133041,8.7789,180.06,180.0,2.7798]
[1736763133338,8.7789,180.06,179.96,3.381]
[1736763133741,8.7789,180.06,179.99,2.78]
[1736763134338,6.0,180.06,179.96,3.381]
[1736763136845,8.7789,180.06,179.99,2.78]
[1736763137041,6.0,180.06,179.96,3.381]
[1736763137242,27.33716373,180.06,179.92,1.7003]
[1736763137441,21.33716373,180.03,179.92,1.7003]
[1736763137843,2.7799,180.0,179.92,1.7003]
[1736763138345,27.33716373,180.06,179.92,1.7003]
[1736763138545,6.0,180.06,179.92,1.7003]
[1736763138740,6.0,180.06,179.98,2.7801]
[1736763139538,8.779,180.06,180.0,2.7798]
[1736763139742,8.779,180.06,179.97,21.33716373]
[1736763140342,8.779,180.06,180.0,2.7797]
[1736763140950,2.7791,180.05,180.0,2.7797]
[1736763141649,2.7794,180.03,179.97,2.7803]
[1736763141947,6.0,180.06,179.95,3.2819]
[1736763143245,2.7791,180.05,179.99,2.7798]
[1736763143547,6.0,180.06,179.99,2.7798]
[1736763143751,6.0,180.06,179.97,2.7802]
[1736763143947,6.0,180.06,179.95,3.2819]
[1736763144145,27.33716373,180.06,179.95,3.2819]
[1736763144453,2.7798,180.01,179.96,2.7804]
[1736763144847,27.33716373,180.06,179.95,3.2819]
[1736763146553,2.7796,180.02,179.96,2.7803]
[1736763147048,2.7796,180.02,179.95,3.2819]
[1736763147049,27.33716373,180.06,179.92,1.7003]
[1736763147251,21.33716373,180.03,179.86,1.5512]
[1736763147450,21.33716373,180.0,179.86,1.5512]
[1736763147849,21.33716373,180.0,179.89,2.7815]
[1736763148949,21.33716373,180.0,179.91,2.7812]
[1736763149349,2.7807,179.95,179.86,3.2387]
[1736763150156,2.7807,179.95,179.89,2.7814]
[1736763150349,5.98,179.96,179.86,3.2387]
[1736763150545,5.98,179.96,179.87,21.33716373]
[1736763150750,5.98,179.96,179.94,2.7807]
[1736763151251,5.98,179.96,179.91,2.7812]
[1736763151446,5.98,179.96,179.86,24.57586373]
[1736763151648,5.98,179.96,179.86,3.2387]
[1736763151848,2.7809,179.93,179.89,2.7815]
[1736763152548,2.7808,179.94,179.89,2.7815]
[1736763152955,5.98,179.96,179.91,2.7812]
[1736763153145,8.7605,179.96,179.86,24.57586373]
[1736763153344,5.98,179.96,179.86,24.57586373]
[1736763153549,5.98,179.96,179.9,2.7813]
[1736763153749,2.7806,179.95,179.86,24.57586373]
[1736763154552,5.98,179.96,179.86,24.57586373]
[1736763154755,8.7605,179.96,179.91,2.7811]
[1736763154955,5.98,179.96,179.91,2.7811]
[1736763156162,2.7807,179.95,179.91,2.7811]
[1736763156460,5.98,179.96,179.91,2.7811]
[1736763157061,8.7605,179.96,179.91,2.7811]
[1736763158458,5.98,179.96,179.86,3.2387]
[1736763158860,2.7809,179.94,179.89,2.7814]
[1736763159060,5.98,179.96,179.86,3.2387]
[1736763160055,5.98,179.96,179.88,21.33716373]
[1736763160260,5.98,179.96,179.92,2.781]
[1736763160763,5.98,179.96,179.88,21.33716373]
[1736763160964,5.98,179.96,179.93,2.7809]
[1736763161460,8.7605,179.96,179.9,2.7813]
[1736763161668,5.96,180.02,179.91,21.33716373]
[1736763162662,5.96,180.02,179.96,2.7804]
[1736763163056,5.96,180.02,179.99,2.78]
[1736763163358,21.33716373,180.09,179.94,21.33716373]
[1736763163555,2.7792,180.05,179.97,2.7803]
[1736763163862,5.96,180.08,179.95,3.3332]
[1736763164063,21.33716373,180.09,180.01,2.7796]
[1736763164064,2.7789,180.06,180.01,2.7796]
[1736763164265,77.86805576,180.12,179.99,21.33716373]
[1736763164467,5.96,180.11,179.99,21.33716373]
[1736763164667,77.86805576,180.12,179.99,21.33716373]
[1736763164965,5.98,180.11,179.99,21.33716373]
[1736763165164,5.98,180.11,180.02,21.33716373]
[1736763165458,5.98,180.12,180.03,3.3362]
[1736763165860,91.88442593,180.14,180.03,3.3362]
[1736763166061,5.98,180.13,180.03,3.3362]
[1736763167062,2.7781,180.12,180.06,2.7788]
[1736763167562,8.7381,180.12,180.06,2.7788]
[1736763167766,5.96,180.12,180.07,2.7787]
[1736763168568,5.96,180.12,180.1,2.7783]
[1736763168763,91.88442593,180.14,180.1,2.7783]
[1736763169464,91.88442593,180.14,180.05,21.33716373]
[1736763170862,91.88442593,180.14,180.09,2.7784]
[1736763171065,91.88442593,180.14,180.04,1.6714]
[1736763172371,21.33716373,180.12,180.03,1.669]
[1736763172667,21.33716373,180.12,179.97,21.33716373]
[1736763172871,21.33716373,180.12,179.98,1.596]
[1736763173073,7.92213448,180.11,179.98,1.596]
[1736763173469,2.779,180.06,179.98,1.596]
[1736763173767,5.96,180.08,179.98,1.596]
[1736763173967,5.96,180.08,180.02,2.7794]
[1736763173968,8.7386,180.08,180.02,2.7794]
[1736763176466,8.7386,180.08,180.03,2.7794]
[1736763177068,8.7386,180.08,179.98,1.596]
[1736763177269,8.7386,180.08,180.02,2.7795]
[1736763178374,5.96,180.08,180.06,2.7789]
[1736763178774,5.96,180.08,180.0,21.33716373]
[1736763178970,8.7387,180.08,180.03,2.7793]
[1736763179170,5.96,180.08,180.0,21.33716373]
[1736763179364,5.96,180.08,179.98,1.596]
[1736763180171,21.33716373,180.06,179.95,1.566]
[1736763180470,21.33716373,180.03,179.91,1.5491]
[1736763181274,2.7805,179.96,179.91,1.5491]
[1736763182877,2.781,179.93,179.87,2.7818]
[1736763183375,5.96,179.98,179.86,3.3714]
[1736763183777,5.96,179.98,179.88,21.33716373]
[1736763183975,2.7803,179.97,179.91,2.7812]
[1736763184479,8.7403,179.98,179.92,2.7811]
[1736763185383,2.7804,179.97,179.91,2.7812]
[1736763185982,2.7805,179.96,179.9,2.7814]
[1736763186878,2.7803,179.97,179.92,2.7811]
[1736763187379,5.96,179.98,179.86,3.3714]
[1736763188384,2.781,179.93,179.87,2.7818]
[1736763189381,5.96,179.98,179.86,3.3714]
[1736763189686,77.88650821,180.07,179.88,21.33716373]
[1736763189885,28.12215986,180.06,179.91,21.33716373]
[1736763190084,0.84499613,180.05,179.94,2.7806]
[1736763190287,0.8450031,180.04,179.94,2.7806]
[1736763190582,2.7799,180.0,179.94,2.7806]
[1736763192681,8.7198,180.01,179.96,2.7805]
[1736763192991,21.33716373,180.06,179.92,1.6911]
[1736763193292,6.78555415,180.05,179.93,1.7102]
[1736763193479,2.7794,180.03,179.97,2.7802]
[1736763193884,2.7794,180.03,179.94,1.6035]
[1736763194087,2.7794,180.03,179.98,2.7801]
[1736763199393,2.7799,180.0,179.94,4.3841]
[1736763199797,2.7799,180.0,179.94,1.6035]
[1736763200294,2.7799,180.0,179.95,2.7805]
[1736763201699,2.7799,180.0,179.96,2.7804]
[1736763201905,2.7799,180.0,179.94,1.6035]
[1736763202195,5.92,180.04,179.92,1.6911]
[1736763202196,13.3542428,180.02,179.92,1.6911]
[1736763202399,13.3542428,179.99,179.92,1.6911]
[1736763202794,2.7805,179.96,179.92,1.6911]
[1736763203198,13.3542428,179.99,179.87,16.5890428]
[1736763203393,2.7809,179.94,179.89,2.7815]
[1736763203792,19.2542428,179.96,179.87,4.8759]
[1736763204098,19.2542428,179.96,179.87,1.6411]
[1736763204099,13.3542428,179.93,179.87,1.6411]
[1736763204397,2.7819,179.87,179.82,2.7825]
[1736763205398,2.7823,179.85,179.8,2.7828]
[1736763206600,8.7018,179.88,179.83,2.7824]
[1736763206800,8.7018,179.88,179.79,4.9105]
[1736763207196,5.92,179.88,179.84,2.7822]
[1736763208398,5.92,179.88,179.83,2.7824]
[1736763211296,8.7018,179.88,179.82,2.7826]
[1736763211501,5.92,179.88,179.79,4.9105]
[1736763212000,2.7822,179.85,179.79,7.6935]